bitfinex-derivatives/quotes_SOLF0:USTF0_20251024
["timestamp","ask_amount","ask_price","bid_price","bid_amount"]
[1761290352131,2.87,192.65,192.64,1.51647555]
[1761290352328,6.93120366,192.65,192.64,1.51647555]
[1761290352531,2.87,192.68,192.64,1.51647555]
[1761290352741,2.87,192.67,192.66,1.51647555]
[1761290355042,2.87,192.69,192.66,1.51647555]
[1761290356141,2.87,192.69,192.68,1.51647555]
[1761290356334,6.93134026,192.69,192.68,1.51647555]
[1761290358045,6.93134026,192.69,192.65,4.6705]
[1761290358341,2.87,192.69,192.66,1.51647555]
[1761290359938,2.87,192.69,192.66,6.18687555]
[1761290360245,2.87,192.69,192.68,1.51647555]
[1761290362245,6.93143499,192.69,192.68,1.51647555]
[1761290362638,2.87,192.69,192.68,1.51647555]
[1761290365042,2.87,192.69,192.66,4.6704]
[1761290365242,2.87,192.69,192.67,1.51647555]
[1761290366339,2.87,192.71,192.67,1.51647555]
[1761290366549,2.87,192.7,192.69,1.51647555]
[1761290367446,2.87,192.72,192.69,1.51647555]
[1761290367739,2.87,192.72,192.71,1.51647555]
[1761290367945,6.93210094,192.72,192.71,1.51647555]
[1761290368152,4.06210094,192.72,192.71,1.51647555]
[1761290368558,4.06210094,192.74,192.71,1.51647555]
[1761290368744,6.93210094,192.73,192.72,1.51647555]
[1761290370955,2.87,192.73,192.72,1.51647555]
[1761290372853,2.87,192.73,192.71,1.51647555]
[1761290375148,2.87,192.73,192.7,4.6695]
[1761290377149,2.87,192.73,192.71,4.6691]
[1761290377655,2.87,192.73,192.71,6.18557555]
[1761290380057,2.81,192.76,192.64,9.3418]
[1761290380251,2.81,192.74,192.68,1.51647555]
[1761290380567,2.81,192.73,192.68,1.51647555]
[1761290380754,2.81,192.73,192.7,4.6694]
[1761290381963,2.81,192.73,192.71,4.6692]
[1761290385365,2.81,192.76,192.73,4.6688]
[1761290386365,4.05691864,192.76,192.73,4.6688]
[1761290386667,2.81,192.75,192.73,4.6688]
[1761290390963,6.86585622,192.77,192.75,4.6683]
[1761290391159,2.81,192.77,192.75,4.6683]
[1761290392066,2.81,192.76,192.73,4.6688]
[1761290392271,2.81,192.75,192.73,4.6688]
[1761290400280,4.07020079,192.74,192.73,4.6688]
[1761290401870,6.87020079,192.74,192.73,4.6688]
[1761290403382,2.8,192.78,192.73,4.6688]
[1761290403580,2.8,192.76,192.73,4.6688]
[1761290403877,4.07154641,192.75,192.73,4.6688]
[1761290404082,2.8,192.76,192.73,4.6688]
[1761290404382,4.07195624,192.75,192.73,4.6688]
[1761290404578,2.8,192.76,192.74,4.6684]
[1761290404783,4.07185082,192.75,192.74,4.6684]
[1761290405375,2.8,192.74,192.72,4.669]
[1761290405681,4.82132755,192.79,192.72,4.669]
[1761290405881,2.8,192.77,192.72,4.669]
[1761290406083,2.8,192.75,192.72,4.669]
[1761290406282,2.8,192.75,192.73,4.6687]
[1761290408286,2.8,192.75,192.71,4.6692]
[1761290408673,2.8,192.73,192.71,4.6692]
[1761290409075,4.07335519,192.72,192.71,4.6692]
[1761290409279,6.87335519,192.72,192.71,4.6692]
[1761290409487,4.07335519,192.72,192.71,4.6692]
[1761290409688,7.41072112,192.76,192.7,2.3677895]
[1761290409979,2.5401395,192.85,192.66,42.98]
[1761290409980,4.07384887,192.75,192.73,2.3677895]
[1761290410178,4.07449586,192.74,192.73,2.3677895]
[1761290410379,4.61091906,192.77,192.73,2.3677895]
[1761290410587,4.07439875,192.76,192.73,2.3677895]
[1761290410786,4.07439875,192.75,192.73,2.3677895]
[1761290411084,2.8,192.77,192.73,7.0365895]
[1761290411285,6.87532131,192.76,192.73,7.0365895]
[1761290411487,4.07532131,192.75,192.73,7.0365895]
[1761290411688,4.07532131,192.74,192.73,7.0365895]
[1761290412590,2.8,192.79,192.76,4.6679]
[1761290413387,2.8,192.78,192.74,4.6685]
[1761290414593,2.8,192.78,192.75,4.6682]
[1761290415289,7.41230998,192.8,192.76,4.6679]
[1761290415491,2.8,192.8,192.76,4.6679]
[1761290415881,2.8,192.79,192.76,4.6679]
[1761290416885,2.8,192.83,192.77,2.3677895]
[1761290417082,7.41079037,192.82,192.78,4.6675]
[1761290417286,2.8,192.82,192.78,4.6675]
[1761290417892,2.8,192.81,192.78,4.6675]
[1761290428005,4.60458466,192.83,192.78,4.6675]
[1761290428205,6.61259186,192.82,192.78,4.6675]
[1761290428406,3.99259186,192.81,192.78,4.6675]
[1761290428705,2.62,192.82,192.78,4.6675]
[1761290428900,3.99237676,192.81,192.78,4.6675]
[1761290429212,2.62,192.81,192.78,4.6675]
[1761290439617,2.77,192.8,192.78,4.6675]
[1761290440814,2.77,192.84,192.78,4.6675]
[1761290441015,2.77,192.82,192.78,4.6675]
[1761290445512,2.77,192.82,192.76,4.668]
[1761290445718,2.77,192.8,192.71,2.3677895]
[1761290445925,2.77,192.78,192.71,2.3677895]
[1761290446226,2.77,192.78,192.68,2.3677895]
[1761290446625,2.3677895,192.8,192.68,2.3677895]
[1761290446626,2.77,192.76,192.68,2.3677895]
[1761290447025,2.77,192.76,192.71,4.6693]
[1761290456731,2.77,192.76,192.67,42.96]
[1761290456939,2.77,192.74,192.69,6.1854508]
[1761290459331,2.65,192.79,192.73,1.5157508]
[1761290459528,2.65,192.77,192.73,1.5157508]
[1761290460236,2.65,192.77,192.72,1.5157508]
[1761290462641,2.65,192.78,192.74,1.5157508]
[1761290464444,2.65,192.78,192.73,1.5157508]
[1761290466134,2.65,192.78,192.77,1.5157508]
[1761290466337,6.63244027,192.78,192.77,1.5157508]
[1761290466639,2.65,192.81,192.77,1.5157508]
[1761290466945,6.63273996,192.8,192.79,1.5157508]
[1761290468546,2.65,192.79,192.77,1.5157508]
[1761290470147,2.65,192.79,192.76,1.5157508]
[1761290475652,2.65,192.79,192.78,1.5157508]
[1761290475847,11.24839984,192.82,192.78,1.5157508]
[1761290476149,6.63316203,192.81,192.8,1.5157508]
[1761290478052,2.65,192.81,192.8,1.5157508]
[1761290478355,2.65,192.83,192.8,1.5157508]
[1761290478649,6.63335921,192.82,192.8,1.5157508]
[1761290478841,2.65,192.82,192.8,1.5157508]
[1761290479254,2.65,192.84,192.8,1.5157508]
[1761290479955,2.65,192.85,192.8,1.5157508]
[1761290480150,3.98384017,192.84,192.8,1.5157508]
[1761290480354,2.65,192.83,192.8,1.5157508]
[1761290483553,2.65,192.83,192.82,1.5157508]
[1761290486059,2.65,192.84,192.82,1.5157508]
[1761290490075,2.65,192.84,192.79,4.6672]
[1761290490273,2.65,192.84,192.81,1.5157508]
[1761290502386,6.59390583,192.85,192.81,1.5157508]
[1761290502684,2.61,192.84,192.79,1.5157508]
[1761290510887,2.61,192.85,192.81,1.5157508]
[1761290511089,3.9896975,192.84,192.81,1.5157508]
[1761290511284,2.61,192.85,192.81,1.5157508]
[1761290511485,6.60057726,192.84,192.81,1.5157508]
[1761290511678,2.61,192.84,192.81,1.5157508]
[1761290512291,2.61,192.85,192.83,1.5157508]
[1761290512490,3.99070021,192.84,192.83,1.5157508]
[1761290512685,6.60070021,192.84,192.81,1.5157508]
[1761290512889,2.61,192.84,192.78,1.5157508]
[1761290513195,2.61,192.82,192.78,1.5157508]
[1761290514703,2.61,192.84,192.78,6.1831508]
[1761290514891,6.60152096,192.83,192.78,6.1831508]
[1761290515086,2.61,192.83,192.78,4.6674]
[1761290515489,2.61,192.83,192.78,6.1831508]
[1761290517091,2.61,192.83,192.78,4.6674]
[1761290517297,2.61,192.81,192.78,4.6674]
[1761290518584,7.23314034,192.84,192.78,6.1831508]
[1761290518789,6.60391849,192.83,192.78,4.6674]
[1761290518989,2.61,192.82,192.78,4.6674]
[1761290519196,2.88,192.85,192.79,4.6672]
[1761290519389,2.88,192.83,192.79,4.6672]
[1761290519586,3.99500588,192.82,192.79,4.6672]
[1761290519797,2.88,192.83,192.79,4.6672]
[1761290519991,3.99491647,192.82,192.79,4.6672]
[1761290520298,2.88,192.83,192.8,4.667]
[1761290520500,3.99622959,192.82,192.8,4.667]
[1761290520701,2.88,192.81,192.78,7.03351712]
[1761290521591,11.52226903,192.85,192.78,2.36591712]
[1761290521794,3.98752528,192.84,192.78,2.36591712]
[1761290522100,2.88,192.85,192.78,2.36591712]
[1761290522301,8.61613433,192.84,192.78,2.36591712]
[1761290522598,3.98838191,192.83,192.78,2.36591712]
[1761290522790,2.88,192.85,192.78,2.36591712]
[1761290522991,3.98842143,192.84,192.78,2.36591712]
[1761290523302,3.98842143,192.83,192.78,2.36591712]
[1761290523499,2.88,192.85,192.78,2.36591712]
[1761290523700,3.98901923,192.84,192.78,2.36591712]
[1761290523900,3.98901923,192.83,192.78,2.36591712]
[1761290524101,2.88,192.85,192.81,4.6667]
[1761290524305,3.98953854,192.84,192.81,4.6667]
[1761290524496,4.8336722,192.87,192.81,4.6667]
[1761290524497,3.98953854,192.83,192.81,4.6667]
[1761290524693,2.88,192.88,192.81,7.03261712]
[1761290525003,8.61907431,192.87,192.81,7.03261712]
[1761290525201,9.4984722,192.9,192.81,7.03261712]
[1761290525202,6.870252,192.86,192.82,4.6665]
[1761290525502,2.88,192.86,192.82,4.6665]
[1761290526406,3.9876464,192.85,192.82,4.6665]
[1761290526608,2.88,192.84,192.82,4.6665]
[1761290527099,2.88,192.87,192.82,4.6665]
[1761290527406,6.86700903,192.86,192.82,4.6665]
[1761290527705,3.98700903,192.85,192.82,4.6665]
[1761290527907,4.6385563,192.87,192.82,4.6665]
[1761290528097,3.98702295,192.86,192.82,4.6665]
[1761290528401,7.51878282,192.87,192.82,4.6665]
[1761290528599,3.98669828,192.86,192.82,4.6665]
[1761290528806,2.88,192.87,192.82,4.6665]
[1761290529104,3.98686761,192.86,192.82,4.6665]
[1761290529297,2.88,192.87,192.82,4.6665]
[1761290529499,3.98617779,192.86,192.83,2.36591712]
[1761290529796,2.88,192.87,192.83,2.36591712]
[1761290530000,3.98617779,192.86,192.83,2.36591712]
[1761290530205,2.88,192.87,192.83,2.36591712]
[1761290530396,3.98558655,192.86,192.83,2.36591712]
[1761290530596,2.88,192.87,192.82,4.6665]
[1761290530801,6.8655907,192.86,192.82,7.03241712]
[1761290531001,2.88,192.86,192.82,7.03241712]
[1761290533007,2.88,192.86,192.83,4.6663]
[1761290533303,2.88,192.89,192.83,4.6663]
[1761290533507,2.88,192.87,192.83,4.6663]
[1761290535103,2.88,192.87,192.83,7.03221712]
[1761290535313,2.88,192.85,192.83,4.6663]
[1761290538116,6.8629483,192.88,192.83,4.6663]
[1761290538309,2.88,192.88,192.83,4.6663]
[1761290538710,2.88,192.87,192.83,4.6663]
[1761290540212,2.88,192.89,192.85,4.6659]
[1761290540418,3.98222195,192.88,192.85,4.6659]
[1761290540610,4.63248294,192.91,192.85,4.6659]
[1761290540810,11.49470489,192.9,192.85,4.6659]
[1761290541017,3.98222195,192.89,192.85,4.6659]
[1761290541220,2.88,192.9,192.85,4.6659]
[1761290541415,3.98178247,192.89,192.85,4.6659]
[1761290541715,2.88,192.89,192.85,4.6659]
[1761290544111,2.88,192.89,192.86,4.6655]
[1761290545126,2.88,192.92,192.86,4.6655]
[1761290545328,2.88,192.92,192.88,4.6651]
[1761290545717,2.88,192.92,192.85,4.6657]
[1761290545918,2.88,192.9,192.85,47.5657]
[1761290546327,2.88,192.9,192.85,4.6657]
[1761290547730,2.88,192.9,192.85,47.5657]
[1761290548131,2.88,192.9,192.85,4.6657]
[1761290548328,2.88,192.9,192.85,47.5657]
[1761290551432,2.88,192.9,192.85,4.6657]
[1761290551623,2.88,192.9,192.85,47.5657]
[1761290554336,3.95849944,192.92,192.85,45.26591712]
[1761290554534,2.68,192.93,192.85,45.26591712]
[1761290554835,2.68,192.91,192.85,45.26591712]
[1761290555734,2.68,192.91,192.87,4.6653]
[1761290556037,3.95837664,192.93,192.87,4.6653]
[1761290556335,2.68,192.93,192.87,4.6653]
[1761290561934,2.68,192.93,192.89,4.6648]
[1761290562836,2.68,192.93,192.87,4.6654]
[1761290564441,2.68,192.93,192.87,47.5654]
[1761290565440,6.63857898,192.93,192.87,47.5654]
[1761290565628,2.68,192.93,192.87,47.5654]
[1761290565832,2.68,192.93,192.87,4.6654]
[1761290566028,6.63857898,192.93,192.88,42.9]
[1761290566229,2.68,192.92,192.88,42.9]
[1761290568242,2.68,192.92,192.87,4.6654]
[1761290568443,2.68,192.92,192.88,42.9]
[1761290569741,2.68,192.92,192.87,4.6654]
[1761290569943,2.68,192.92,192.88,42.9]
[1761290570946,2.68,192.92,192.87,4.6654]
[1761290571147,2.68,192.92,192.88,42.88]
[1761290572746,2.68,192.92,192.87,4.6654]
[1761290572937,2.68,192.92,192.88,42.88]
[1761290576149,4.61725458,192.94,192.88,42.88]
[1761290576346,6.64132102,192.93,192.88,42.88]
[1761290576646,2.68,192.94,192.89,2.36591712]
[1761290576947,3.96137316,192.93,192.89,2.36591712]
[1761290577150,2.68,192.94,192.89,2.36591712]
[1761290577349,3.96146676,192.93,192.89,2.36591712]
[1761290577646,2.68,192.94,192.9,42.88]
[1761290578346,2.68,192.94,192.91,42.88]
[1761290578740,2.68,192.94,192.89,2.36591712]
[1761290578942,2.68,192.94,192.9,28.7]
[1761290580549,2.68,192.94,192.89,2.36591712]
[1761290580742,2.68,192.94,192.91,1.51247876]
[1761290586753,4.62464107,192.93,192.91,1.51247876]
[1761290586952,2.8,192.93,192.91,1.51247876]
[1761290587453,2.8,192.91,192.86,4.6656]
[1761290587656,2.8,192.91,192.86,6.17807876]
[1761290587953,2.8,192.89,192.85,1.51247876]
[1761290588154,2.8,192.89,192.85,44.39247876]
[1761290588457,2.8,192.89,192.85,1.51247876]
[1761290588850,2.8,192.87,192.74,9.3371]
[1761290589057,2.8,192.85,192.71,77.73403659]
[1761290589255,2.8,192.85,192.82,1.51247876]
[1761290596958,2.8,192.89,192.84,1.51247876]
[1761290597156,2.8,192.87,192.81,42.88]
[1761290597360,2.8,192.86,192.83,1.51247876]
[1761290598261,2.8,192.86,192.82,1.51247876]
[1761290599558,2.8,192.86,192.84,1.51247876]
[1761290600158,2.8,192.87,192.83,1.51247876]
[1761290603564,2.8,192.87,192.85,1.51247876]
[1761290604966,2.8,192.89,192.85,1.51247876]
[1761290605164,2.8,192.89,192.87,1.51247876]
[1761290605367,2.8,192.89,192.82,4.6667]
[1761290605663,2.8,192.89,192.86,1.51247876]
[1761290608472,2.8,192.89,192.88,1.51247876]
[1761290609874,2.68,192.92,192.88,1.51247876]
[1761290610073,2.68,192.92,192.89,1.51247876]
[1761290610475,2.68,192.91,192.89,1.51247876]
[1761290610782,2.68,192.9,192.87,1.51247876]
[1761290616569,2.68,192.89,192.87,1.51247876]
[1761290619783,2.68,192.89,192.86,1.51247876]
[1761290620181,2.68,192.88,192.84,1.51247876]
[1761290620776,2.68,192.88,192.86,1.51247876]
[1761290624988,2.68,192.88,192.83,4.6662]
[1761290625187,2.68,192.88,192.87,1.51247876]
[1761290626878,3.93813897,192.89,192.87,1.51247876]
[1761290627082,6.61813897,192.89,192.87,1.51247876]
[1761290627288,2.68,192.89,192.87,1.51247876]
[1761290628486,7.384133,192.91,192.84,4.666]
[1761290628686,8.64422899,192.9,192.84,4.666]
[1761290628889,2.68,192.91,192.89,1.51247876]
[1761290629894,2.68,192.92,192.89,1.51247876]
[1761290630195,4.70585957,192.95,192.91,1.51247876]
[1761290630388,2.68,192.93,192.91,1.51247876]
[1761290631392,7.38717305,192.95,192.91,1.51247876]
[1761290631592,8.65027404,192.94,192.93,1.51247876]
[1761290632094,11.33027404,192.94,192.93,1.51247876]
[1761290632692,2.68,192.93,192.92,1.51247876]
[1761290632894,2.68,192.92,192.9,1.51247876]
[1761290633482,8.65114423,192.94,192.9,1.51247876]
[1761290633483,2.68,192.94,192.9,1.51247876]
[1761290633687,2.68,192.94,192.93,1.51247876]
[1761290633887,11.32803393,192.94,192.93,1.51247876]
[1761290635198,11.32803393,192.94,192.91,1.51247876]
[1761290635199,2.68,192.93,192.91,1.51247876]
[1761290639993,2.68,192.93,192.87,4.6652]
[1761290640189,2.68,192.93,192.92,1.51247876]
[1761290640806,2.68,192.93,192.89,2.36317121]
[1761290641700,2.68,192.93,192.89,7.02817121]
[1761290642406,2.68,192.93,192.89,2.36317121]
[1761290643204,2.81,192.96,192.92,2.36317121]
[1761290643399,11.45081449,192.98,192.92,2.36317121]
[1761290643604,0.1338,192.99,192.95,2.36317121]
[1761290643995,2.9438,192.99,192.95,2.36317121]
[1761290645105,2.9438,192.99,192.93,4.6638]
[1761290645404,2.9438,192.99,192.94,2.36317121]
[1761290648100,2.9438,192.99,192.94,7.02667121]
[1761290649106,2.9438,192.99,192.94,4.6635]
[1761290649403,2.9438,192.99,192.91,49.88747121]
[1761290649998,2.9438,192.99,192.91,4.6643]
[1761290650195,2.81,192.99,192.91,7.02747121]
[1761290650598,2.81,192.98,192.91,7.02747121]
[1761290651509,2.81,192.97,192.91,7.02747121]
[1761290654404,2.81,192.97,192.89,4.6649]
[1761290654611,2.81,192.96,192.89,4.6649]
[1761290656119,2.81,192.96,192.9,4.6645]
[1761290656415,2.81,192.96,192.91,2.36317121]
[1761290656606,2.81,192.99,192.91,2.36317121]
[1761290657001,6.74107033,192.99,192.91,2.36317121]
[1761290657217,2.81,192.99,192.91,2.36317121]
[1761290657614,6.74103215,192.99,192.91,2.36317121]
[1761290657807,2.81,192.99,192.91,2.36317121]
[1761290658004,2.81,192.99,192.92,4.664]
[1761290658207,6.74097642,192.99,192.92,4.664]
[1761290658421,2.81,192.99,192.92,4.664]
[1761290659416,2.81,192.99,192.91,2.36317121]
[1761290659417,2.81,192.99,192.94,7.02677121]
[1761290659713,3.93240632,193.01,192.94,7.02677121]
[1761290659906,2.81,193.01,192.94,7.02677121]
[1761290660107,6.74240632,193.01,192.94,4.6636]
[1761290660307,2.81,193.0,192.94,7.02677121]
[1761290663115,2.81,193.0,192.95,4.6633]
[1761290665521,2.81,193.0,192.97,4.663]
[1761290665816,2.81,193.0,192.94,45.20317121]
[1761290666318,6.74303794,193.03,192.97,2.36317121]
[1761290666719,2.81,193.03,192.97,2.36317121]
[1761290667412,2.81,193.02,192.97,2.36317121]
[1761290668714,3.93480253,193.05,193.0,2.36317121]
[1761290668914,2.67,193.04,193.0,2.36317121]
[1761290669808,3.93448955,193.06,193.0,2.36317121]
[1761290670014,3.93448955,193.05,193.0,2.36317121]
[1761290670319,2.8,193.05,193.0,2.36317121]
[1761290670820,2.8,193.05,193.0,7.02537121]
[1761290671018,3.93611658,193.06,193.0,7.02537121]
[1761290671329,7.42214971,193.08,193.0,7.02537121]
[1761290671330,3.93611658,193.07,193.0,7.02537121]
[1761290671920,2.8,193.08,193.0,7.02537121]
[1761290672120,6.71895481,193.08,193.0,7.02537121]
[1761290672323,2.8,193.07,193.0,7.02537121]
[1761290672510,2.8,193.07,193.0,2.36317121]
[1761290672713,3.91895481,193.07,193.0,2.36317121]
[1761290672913,2.8,193.06,193.0,2.36317121]
[1761290673321,6.71923388,193.06,193.0,2.36317121]
[1761290673521,2.8,193.06,193.0,2.36317121]
[1761290677113,2.8,193.06,193.0,49.86527121]
[1761290681621,2.8,193.06,193.0,7.02527121]
[1761290681824,2.8,193.06,192.98,4.6628]
[1761290682027,2.8,193.04,192.98,4.6628]
[1761290683123,2.8,193.03,192.98,4.6628]
[1761290685819,2.8,193.02,192.98,4.6628]
[1761290689930,2.8,193.02,192.96,4.6632]
[1761290690430,2.8,193.02,192.93,42.82]
[1761290690628,2.8,193.01,192.93,42.82]
[1761290691433,2.8,193.01,192.93,47.4838]
[1761290692128,2.8,192.99,192.93,4.6638]
[1761290693533,2.8,192.99,192.92,42.82]
[1761290694226,6.72020092,193.01,192.92,42.82]
[1761290694928,6.72020092,193.01,192.94,4.6636]
[1761290695124,6.72020092,193.01,192.94,7.02677121]
[1761290695633,2.8,193.0,192.94,7.02677121]
[1761290696133,2.8,193.0,192.94,4.6636]
[1761290698637,6.72219423,193.0,192.94,4.6636]
[1761290698836,2.8,192.99,192.94,4.6636]
[1761290700725,2.8,192.99,192.94,6.17542078]
[1761290701133,2.8,192.99,192.96,1.51182078]
[1761290702337,2.8,192.99,192.94,1.51182078]
[1761290705041,2.82,192.97,192.94,1.51182078]
[1761290707842,2.82,192.97,192.91,1.51182078]
[1761290709047,2.82,192.96,192.91,1.51182078]
[1761290710643,2.82,192.96,192.93,1.51182078]
[1761290712442,2.82,192.96,192.92,1.51182078]
[1761290712645,2.82,192.92,192.75,162.12078563]
[1761290712849,2.82,192.91,192.76,42.84]
[1761290713049,2.82,192.9,192.84,1.51182078]
[1761290713648,2.82,192.89,192.84,1.51182078]
[1761290713838,1.51182078,192.93,192.82,42.84]
[1761290713839,2.82,192.93,192.86,1.51182078]
[1761290714038,2.82,192.92,192.86,1.51182078]
[1761290715549,2.82,192.91,192.86,1.51182078]
[1761290717253,2.82,192.91,192.88,1.51182078]
[1761290718348,2.82,192.91,192.89,1.51182078]
[1761290720643,2.82,192.91,192.83,4.6664]
[1761290720848,2.82,192.91,192.86,1.51182078]
[1761290721145,4.6647,192.91,192.82,42.84]
[1761290721353,2.82,192.9,192.86,1.51182078]
[1761290726349,4.664,192.93,192.88,1.51182078]
[1761290726554,2.82,192.92,192.9,1.51182078]
[1761290730151,2.82,192.92,192.84,4.666]
[1761290730345,2.82,192.92,192.9,1.51182078]
[1761290730753,2.82,192.92,192.8,42.84]
[1761290730950,2.8,192.9,192.77,65.36223681]
[1761290731150,2.8,192.9,192.84,1.51182078]
[1761290731849,2.8,192.89,192.84,1.51182078]
[1761290732250,2.8,192.89,192.78,42.84]
[1761290732652,2.8,192.89,192.85,1.51182078]
[1761290735163,2.8,192.89,192.87,1.51182078]
[1761290736052,2.8,192.91,192.87,1.51182078]
[1761290736252,2.8,192.91,192.89,1.51182078]
[1761290738857,2.8,192.93,192.89,1.51182078]
[1761290739159,2.8,192.93,192.91,1.51182078]
[1761290739859,4.6633,192.96,192.91,1.51182078]
[1761290740059,6.82481771,192.95,192.93,1.51182078]
[1761290740258,4.02481771,192.95,192.93,1.51182078]
[1761290740457,6.82481771,192.95,192.93,1.51182078]
[1761290740653,2.8,192.94,192.93,1.51182078]
[1761290741853,2.8,192.94,192.91,1.51182078]
[1761290743464,4.6629,192.98,192.93,1.51182078]
[1761290743757,6.8283584,192.97,192.95,1.51182078]
[1761290744163,2.8,192.96,192.86,27.02]
[1761290744351,2.8,192.96,192.93,1.51182078]
[1761290748262,6.83353793,192.96,192.93,1.51182078]
[1761290748468,2.8,192.95,192.93,1.51182078]
[1761290749167,2.8,192.95,192.92,1.51182078]
[1761290750263,2.8,192.95,192.9,4.6646]
[1761290750460,2.8,192.95,192.91,1.51182078]
[1761290750969,4.03492589,192.94,192.91,1.51182078]
[1761290751160,2.8,192.93,192.91,1.51182078]
[1761290752160,2.8,192.93,192.89,1.51182078]
[1761290752669,4.03540713,192.94,192.91,1.51182078]
[1761290752869,2.8,192.96,192.91,1.51182078]
[1761290753058,6.83627879,192.95,192.91,1.51182078]
[1761290753263,2.8,192.95,192.91,1.51182078]
[1761290755575,2.8,192.95,192.9,4.6646]
[1761290755764,2.8,192.95,192.91,1.51182078]
[1761290755969,2.8,192.96,192.91,1.51182078]
[1761290756163,4.03683468,192.95,192.91,1.51182078]
[1761290756368,2.8,192.96,192.91,1.51182078]
[1761290756668,6.83719759,192.95,192.91,1.51182078]
[1761290756862,2.8,192.95,192.91,1.51182078]
[1761290758971,2.8,192.98,192.93,1.51182078]
[1761290759168,6.8172179,192.97,192.93,1.51182078]
[1761290759372,4.0372179,192.96,192.95,1.51182078]
[1761290761183,6.8172179,192.96,192.95,1.51182078]
[1761290761383,2.78,192.95,192.93,1.51182078]
[1761290762684,2.78,192.95,192.91,4.6643]
[1761290769188,4.0106102,192.94,192.91,4.6643]
[1761290769388,2.78,192.93,192.91,4.6643]
[1761290772884,2.78,192.97,192.92,4.664]
[1761290773083,8.82154345,192.96,192.92,4.664]
[1761290773287,2.78,192.97,192.92,4.664]
[1761290773486,6.79218456,192.96,192.92,4.664]
[1761290773787,2.78,193.0,192.93,4.6638]
[1761290773986,8.8219285,192.99,192.93,4.6638]
[1761290774285,2.78,192.97,192.93,4.6638]
[1761290774485,4.01213779,192.96,192.93,4.6638]
[1761290774687,2.78,192.97,192.93,4.6638]
[1761290774886,4.01207081,192.96,192.93,4.6638]
[1761290775086,2.78,192.97,192.93,4.6638]
[1761290775285,4.01203211,192.96,192.93,4.6638]
[1761290775487,2.78,192.97,192.93,4.6638]
[1761290775686,4.01203655,192.96,192.93,4.6638]
[1761290775886,2.78,192.97,192.93,4.6638]
[1761290776093,4.01203733,192.96,192.93,4.6638]
[1761290776294,2.78,193.0,192.93,4.6638]
[1761290776487,11.6028578,192.99,192.93,4.6638]
[1761290776685,2.78,192.97,192.93,4.6638]
[1761290776887,11.6028578,192.96,192.93,4.6638]
[1761290777086,2.78,192.96,192.93,4.6638]
[1761290778596,2.78,192.94,192.91,4.6643]
[1761290778796,2.78,192.97,192.89,45.18278031]
[1761290778996,8.82797945,192.96,192.89,45.18278031]
[1761290779193,4.01479843,192.95,192.89,45.18278031]
[1761290779494,2.78,192.97,192.89,45.18278031]
[1761290779694,8.83039661,192.96,192.89,45.18278031]
[1761290779888,8.83039661,192.95,192.89,45.18278031]
[1761290780094,2.78,192.97,192.92,4.664]
[1761290780296,8.83161841,192.96,192.92,4.664]
[1761290780594,8.83161841,192.95,192.92,4.664]
[1761290780795,2.78,192.97,192.93,4.6638]
[1761290780995,11.6130946,192.96,192.93,4.6638]
[1761290781195,8.8330946,192.95,192.93,4.6638]
[1761290781388,2.78,192.96,192.93,4.6638]
[1761290781583,8.83456454,192.95,192.93,4.6638]
[1761290781789,2.78,192.96,192.93,4.6638]
[1761290782084,8.83456454,192.95,192.93,4.6638]
[1761290782284,2.78,192.96,192.93,4.6638]
[1761290782490,8.83666804,192.95,192.93,4.6638]
[1761290782690,2.78,192.96,192.93,4.6638]
[1761290782989,8.83666977,192.95,192.93,4.6638]